[Event "23rd ETCC Women 2021"]
[Site "Catez"]
[Date "2021.11.14"]
[Round "3.15"]
[White "Sedina, Elena"]
[Black "Gaponenko, Inna"]
[Result "1/2-1/2"]
[ECO "B22"]
[WhiteElo "2263"]
[BlackElo "2339"]
[Annotator "NA"]
[PlyCount "60"]
[EventDate "2021.11.08"]
[EventType "team-tourn"]
[EventCountry "SLO"]
[SourceTitle "playchess.com"]
[Source "ChessBase"]
[SourceQuality "1"]
[WhiteTeam "Italy"]
[BlackTeam "Ukraine"]
[WhiteTeamCountry "ITA"]
[BlackTeamCountry "UKR"]
[TimeControl "40/5400+30:1800+30"]

1. e4 {[%emt 0:00:06]} c5 {[%emt 0:00:07]} 2. c3 {[%emt 0:01:32]} Nf6 {[%emt 0:
02:55]} 3. e5 {[%emt 0:00:18]} Nd5 {[%emt 0:00:08]} 4. Nf3 {[%emt 0:00:49]} Nc6
{[%emt 0:04:42]} 5. d4 {[%emt 0:01:07]} cxd4 {[%emt 0:00:56]} 6. cxd4 {[%emt 0:
02:16]} d6 {[%emt 0:01:46]} 7. Bc4 {[%emt 0:02:11]} dxe5 {[%emt 0:30:11]} 8.
dxe5 {[%emt 0:02:46]} Ndb4 {[%emt 0:01:36]} 9. O-O {[%emt 0:13:52]} Qxd1 {
[%emt 0:15:44]} 10. Rxd1 {[%emt 0:00:07]} Bg4 {[%emt 0:00:35]} 11. Nc3 {
[%emt 0:12:08]} Nc2 {[%emt 0:03:05]} 12. Rb1 {[%emt 0:03:37]} Bxf3 {[%emt 0:01:
35]} 13. gxf3 {[%emt 0:04:47]} e6 {[%emt 0:00:08]} 14. Bb5 {[%emt 0:42:58]} Rd8
{[%emt 0:09:41]} 15. Bg5 {[%emt 0:00:38]} Be7 {[%emt 0:06:58]} 16. Rxd8+ {
[%emt 0:03:57]} Bxd8 {[%emt 0:00:13]} 17. Bxd8 {[%emt 0:02:08]} Kxd8 {[%emt 0:
00:04]} 18. Bxc6 {[%emt 0:00:09]} bxc6 {[%emt 0:00:04]} 19. Rc1 {[%emt 0:00:10]
} Nb4 {[%emt 0:01:09]} 20. a3 {[%emt 0:02:34]} Nd5 {[%emt 0:00:39]} 21. Nxd5 {
[%emt 0:02:04]} cxd5 {[%emt 0:00:06]} 22. Rc6 {[%emt 0:00:23]} Re8 {[%emt 0:01:
07]} 23. Ra6 {[%emt 0:00:32]} Re7 {[%emt 0:00:09]} 24. Kf1 {[%emt 0:00:22]} Rb7
{[%emt 0:15:38]} 25. b4 {[%emt 0:00:07]} Kc8 {[%emt 0:00:03]} 26. Ke2 {[%emt 0:
00:36]} Kb8 {[%emt 0:00:03]} 27. Rd6 {[%emt 0:00:39]} Kc7 {[%emt 0:00:17]} 28.
Ra6 {[%emt 0:00:17]} Kb8 {[%emt 0:00:03]} 29. Rd6 {[%emt 0:00:04]} Kc7 {
[%emt 0:00:04]} 30. Ra6 {[%emt 0:00:05]} Kb8 {[%emt 0:00:27]} 1/2-1/2

[Event "23rd ETCC Women 2021"]
[Site "Catez"]
[Date "2021.11.14"]
[Round "3.16"]
[White "Zhukova, Natalia"]
[Black "Gueci, Tea"]
[Result "1-0"]
[ECO "D30"]
[WhiteElo "2331"]
[BlackElo "2242"]
[Annotator "NA"]
[PlyCount "61"]
[EventDate "2021.11.08"]
[EventType "team-tourn"]
[EventCountry "SLO"]
[SourceTitle "playchess.com"]
[Source "ChessBase"]
[SourceQuality "1"]
[WhiteTeam "Ukraine"]
[BlackTeam "Italy"]
[WhiteTeamCountry "UKR"]
[BlackTeamCountry "ITA"]
[TimeControl "40/5400+30:1800+30"]

1. c4 {[%emt 0:00:04]} e6 {[%emt 0:00:03]} 2. g3 {[%emt 0:00:21]} d5 {[%emt 0:
00:06]} 3. d4 {[%emt 0:00:18]} c5 {[%emt 0:00:30]} 4. cxd5 {[%emt 0:01:00]}
exd5 {[%emt 0:00:05]} 5. Nf3 {[%emt 0:00:16]} Nc6 {[%emt 0:00:15]} 6. Bg2 {
[%emt 0:00:18]} Nf6 {[%emt 0:00:15]} 7. O-O {[%emt 0:00:36]} c4 {[%emt 0:00:39]
} 8. Ne5 {[%emt 0:00:41]} Be7 {[%emt 0:01:30]} 9. Nxc6 {[%emt 0:00:32]} bxc6 {
[%emt 0:00:04]} 10. b3 {[%emt 0:00:19]} cxb3 {[%emt 0:01:35]} 11. axb3 {
[%emt 0:00:07]} O-O {[%emt 0:02:12]} 12. Ba3 {[%emt 0:03:33]} Re8 {[%emt 0:09:
13]} 13. Nc3 {[%emt 0:09:01]} Rb8 {[%emt 0:10:26]} 14. Na4 {[%emt 0:09:49]}
Bxa3 {[%emt 0:08:14]} 15. Rxa3 {[%emt 0:00:07]} Qe7 {[%emt 0:00:26]} 16. Ra2 {
[%emt 0:00:51]} Qb4 {[%emt 0:12:43]} 17. Nc5 {[%emt 0:02:05]} Nd7 {[%emt 0:01:
06]} 18. Na6 {[%emt 0:31:03]} Qxb3 {[%emt 0:17:28]} 19. Nxb8 {[%emt 0:00:30]}
Qxa2 {[%emt 0:00:10]} 20. Nxc6 {[%emt 0:00:05]} Bb7 {[%emt 0:02:50]} 21. Qc1 {
[%emt 0:21:34]} Rxe2 {[%emt 0:06:00]} 22. Nd8 {[%emt 0:03:19]} Ba6 {[%emt 0:11:
30]} 23. Qc6 {[%emt 0:00:51]} Re7 {[%emt 0:11:02]} 24. Qd6 {[%emt 0:01:17]} Qe2
{[%emt 0:01:55]} 25. Nc6 {[%emt 0:00:07]} Re6 {[%emt 0:01:50]} 26. Qxd7 {
[%emt 0:00:14]} h5 {[%emt 0:00:36]} 27. Nb4 {[%emt 0:05:44]} Bc4 {[%emt 0:00:
27]} 28. Nxd5 {[%emt 0:00:31]} Qa2 {[%emt 0:00:33]} 29. Rc1 {[%emt 0:02:40]}
Bd3 {[%emt 0:00:40]} 30. Nf4 {[%emt 0:02:01]} Qd2 {[%emt 0:00:17]} 31. Qc8+ {
[%emt 0:00:24]} 1-0

[Event "23rd ETCC Women 2021"]
[Site "Catez"]
[Date "2021.11.14"]
[Round "3.17"]
[White "Sebag, Marie"]
[Black "Lazarne Vajda, Szidonia"]
[Result "1-0"]
[ECO "C41"]
[WhiteElo "2447"]
[BlackElo "2345"]
[Annotator "NA"]
[PlyCount "63"]
[EventDate "2021.11.08"]
[EventType "team-tourn"]
[EventCountry "SLO"]
[SourceTitle "playchess.com"]
[Source "ChessBase"]
[SourceQuality "1"]
[WhiteTeam "France"]
[BlackTeam "Hungary"]
[WhiteTeamCountry "FRA"]
[BlackTeamCountry "HUN"]
[TimeControl "40/5400+30:1800+30"]

1. e4 {[%emt 0:00:04]} d6 {[%emt 0:00:23]} 2. d4 {[%emt 0:00:11]} Nf6 {[%emt 0:
00:13]} 3. Nc3 {[%emt 0:00:14]} e5 {[%emt 0:00:13]} 4. Nf3 {[%emt 0:00:10]}
Nbd7 {[%emt 0:00:18]} 5. Bc4 {[%emt 0:01:23]} Be7 {[%emt 0:00:31]} 6. O-O {
[%emt 0:01:08]} O-O {[%emt 0:00:18]} 7. a4 {[%emt 0:01:40]} c6 {[%emt 0:00:42]}
8. Re1 {[%emt 0:03:18]} h6 {[%emt 0:01:29]} 9. h3 {[%emt 0:09:39]} Re8 {
[%emt 0:01:33]} 10. Ba2 {[%emt 0:16:28]} exd4 {[%emt 0:05:49]} 11. Qxd4 {
[%emt 0:08:59]} Nf8 {[%emt 0:23:22]} 12. Be3 {[%emt 0:07:26]} Be6 {[%emt 0:01:
38]} 13. Bxe6 {[%emt 0:04:06]} Nxe6 {[%emt 0:01:01]} 14. Qd2 {[%emt 0:00:25]}
Bf8 {[%emt 0:08:22]} 15. Rad1 {[%emt 0:08:39]} a6 {[%emt 0:01:09]} 16. Nd4 {
[%emt 0:07:09]} Nxd4 {[%emt 0:07:53]} 17. Bxd4 {[%emt 0:00:43]} b5 {[%emt 0:02:
06]} 18. f3 {[%emt 0:02:52]} Nd7 {[%emt 0:07:22]} 19. Qf2 {[%emt 0:02:33]} b4 {
[%emt 0:08:01]} 20. Ne2 {[%emt 0:00:27]} Qa5 {[%emt 0:11:03]} 21. b3 {[%emt 0:
01:36]} f5 {[%emt 0:00:18]} 22. Ng3 {[%emt 0:08:40]} fxe4 {[%emt 0:00:43]} 23.
fxe4 {[%emt 0:00:26]} Qg5 {[%emt 0:01:56]} 24. Nf5 {[%emt 0:02:38]} Qg6 {
[%emt 0:04:46]} 25. Bxg7 {[%emt 0:02:30]} Bxg7 {[%emt 0:04:37]} 26. Rxd6 {
[%emt 0:00:08]} Qf7 {[%emt 0:05:44]} 27. Qg3 {[%emt 0:00:31]} Kh7 {[%emt 0:01:
23]} 28. Qxg7+ {[%emt 0:00:54]} Qxg7 {[%emt 0:00:14]} 29. Nxg7 {[%emt 0:00:04]}
Kxg7 {[%emt 0:00:49]} 30. Rxd7+ {[%emt 0:00:04]} Kg8 {[%emt 0:00:17]} 31. Rd6 {
[%emt 0:04:37]} Kg7 {[%emt 0:00:52]} 32. Re3 {[%emt 0:02:50]} 1-0

[Event "23rd ETCC Women 2021"]
[Site "Catez"]
[Date "2021.11.14"]
[Round "3.18"]
[White "Gara, Ticia"]
[Black "Guichard, Pauline"]
[Result "1-0"]
[ECO "A18"]
[WhiteElo "2331"]
[BlackElo "2409"]
[Annotator "NA"]
[PlyCount "85"]
[EventDate "2021.11.08"]
[EventType "team-tourn"]
[EventCountry "SLO"]
[SourceTitle "playchess.com"]
[Source "ChessBase"]
[SourceQuality "1"]
[WhiteTeam "Hungary"]
[BlackTeam "France"]
[WhiteTeamCountry "HUN"]
[BlackTeamCountry "FRA"]
[TimeControl "40/5400+30:1800+30"]

1. c4 {[%emt 0:00:04]} Nf6 {[%emt 0:00:31]} 2. Nc3 {[%emt 0:00:27]} e6 {
[%emt 0:00:21]} 3. e4 {[%emt 0:00:43]} d5 {[%emt 0:00:12]} 4. e5 {[%emt 0:00:
24]} d4 {[%emt 0:00:18]} 5. exf6 {[%emt 0:00:17]} dxc3 {[%emt 0:00:08]} 6. bxc3
{[%emt 0:00:24]} Qxf6 {[%emt 0:00:19]} 7. d4 {[%emt 0:00:17]} b6 {[%emt 0:04:
23]} 8. Be2 {[%emt 0:00:41]} Bb7 {[%emt 0:00:19]} 9. Bf3 {[%emt 0:00:06]} Bxf3
{[%emt 0:00:06]} 10. Nxf3 {[%emt 0:00:05]} Bd6 {[%emt 0:01:31]} 11. Qa4+ {
[%emt 0:00:19]} c6 {[%emt 0:00:42]} 12. O-O {[%emt 0:00:22]} O-O {[%emt 0:01:
25]} 13. Bg5 {[%emt 0:00:19]} Qf5 {[%emt 0:03:00]} 14. Bh4 {[%emt 0:00:16]} Rc8
{[%emt 0:08:38]} 15. Bg3 {[%emt 0:00:36]} Bf4 {[%emt 0:01:40]} 16. Bxf4 {
[%emt 0:04:29]} Qxf4 {[%emt 0:00:06]} 17. Ne5 {[%emt 0:01:55]} f6 {[%emt 0:02:
42]} 18. Nd3 {[%emt 0:15:31]} Qf5 {[%emt 0:00:46]} 19. Rad1 {[%emt 0:01:40]}
Nd7 {[%emt 0:12:23]} 20. Rfe1 {[%emt 0:00:58]} Rc7 {[%emt 0:04:35]} 21. Re3 {
[%emt 0:25:35]} Rd8 {[%emt 0:06:21]} 22. Rde1 {[%emt 0:04:02]} Nf8 {[%emt 0:01:
24]} 23. c5 {[%emt 0:03:48]} Kh8 {[%emt 0:07:19]} 24. Qb3 {[%emt 0:03:35]} b5 {
[%emt 0:10:45]} 25. a4 {[%emt 0:13:52]} a6 {[%emt 0:00:09]} 26. a5 {[%emt 0:03:
20]} e5 {[%emt 0:06:38]} 27. Nb4 {[%emt 0:06:00]} exd4 {[%emt 0:00:13]} 28.
cxd4 {[%emt 0:08:00]} Qc8 {[%emt 0:01:06]} 29. d5 {[%emt 0:01:35]} cxd5 {
[%emt 0:01:15]} 30. Nxd5 {[%emt 0:00:28]} Rxd5 {[%emt 0:04:02]} 31. Qxd5 {
[%emt 0:00:04]} Rxc5 {[%emt 0:00:03]} 32. Qf7 {[%emt 0:01:38]} Rc1 {[%emt 0:03:
34]} 33. g3 {[%emt 0:02:04]} h6 {[%emt 0:00:33]} 34. h4 {[%emt 0:02:16]} Kh7 {
[%emt 0:00:44]} 35. Qe8 {[%emt 0:01:13]} Rxe1+ {[%emt 0:02:36]} 36. Rxe1 {
[%emt 0:00:01]} Qc5 {[%emt 0:01:25]} 37. h5 {[%emt 0:00:35]} b4 {[%emt 0:01:38]
} 38. Qf7 {[%emt 0:00:37]} b3 {[%emt 0:00:39]} 39. Re7 {[%emt 0:00:49]} Qg5 {
[%emt 0:05:21]} 40. Rb7 {[%emt 0:00:28]} Qg4 {[%emt 0:04:32]} 41. Rxb3 {
[%emt 0:05:38]} f5 {[%emt 0:01:54]} 42. Rb8 {[%emt 0:05:14]} f4 {[%emt 0:01:00]
} 43. Rxf8 {[%emt 0:00:33]} 1-0

[Event "23rd ETCC Women 2021"]
[Site "Catez"]
[Date "2021.11.14"]
[Round "3.19"]
[White "Milliet, Sophie"]
[Black "Terbe, Julianna"]
[Result "1-0"]
[ECO "C84"]
[WhiteElo "2418"]
[BlackElo "2318"]
[Annotator "NA"]
[PlyCount "87"]
[EventDate "2021.11.08"]
[EventType "team-tourn"]
[EventCountry "SLO"]
[SourceTitle "playchess.com"]
[Source "ChessBase"]
[SourceQuality "1"]
[WhiteTeam "France"]
[BlackTeam "Hungary"]
[WhiteTeamCountry "FRA"]
[BlackTeamCountry "HUN"]
[TimeControl "40/5400+30:1800+30"]

1. e4 {[%emt 0:00:04]} e5 {[%emt 0:00:15]} 2. Nf3 {[%emt 0:00:04]} Nc6 {
[%emt 0:00:13]} 3. Bb5 {[%emt 0:00:09]} a6 {[%emt 0:00:07]} 4. Ba4 {[%emt 0:00:
04]} Nf6 {[%emt 0:00:05]} 5. O-O {[%emt 0:00:07]} Nxe4 {[%emt 0:00:06]} 6. d4 {
[%emt 0:00:27]} Be7 {[%emt 0:00:05]} 7. Re1 {[%emt 0:02:04]} b5 {[%emt 0:00:10]
} 8. Rxe4 {[%emt 0:00:45]} d5 {[%emt 0:00:07]} 9. Nxe5 {[%emt 0:00:57]} Nxe5 {
[%emt 0:00:06]} 10. Rxe5 {[%emt 0:00:05]} bxa4 {[%emt 0:00:05]} 11. Qe2 {
[%emt 0:15:45]} Be6 {[%emt 0:00:10]} 12. Nc3 {[%emt 0:01:29]} O-O {[%emt 0:07:
29]} 13. Nxa4 {[%emt 0:15:17]} Bf6 {[%emt 0:04:31]} 14. Bf4 {[%emt 0:07:16]}
Bxe5 {[%emt 0:01:31]} 15. Bxe5 {[%emt 0:03:37]} Re8 {[%emt 0:05:52]} 16. Nc5 {
[%emt 0:00:07]} f6 {[%emt 0:06:10]} 17. Bf4 {[%emt 0:09:35]} Bf5 {[%emt 0:00:
41]} 18. Qd2 {[%emt 0:00:54]} Qe7 {[%emt 0:02:24]} 19. Kf1 {[%emt 0:13:57]} c6
{[%emt 0:05:01]} 20. a4 {[%emt 0:00:54]} h5 {[%emt 0:09:34]} 21. h4 {[%emt 0:
01:28]} Qf7 {[%emt 0:05:28]} 22. Ra3 {[%emt 0:00:31]} Qg6 {[%emt 0:03:05]} 23.
Rg3 {[%emt 0:00:42]} Qh7 {[%emt 0:00:38]} 24. Qb4 {[%emt 0:07:45]} Bg4 {
[%emt 0:07:53]} 25. Rc3 {[%emt 0:14:48]} Be2+ {[%emt 0:11:50]} 26. Kg1 {
[%emt 0:00:03]} Qf5 {[%emt 0:00:06]} 27. Bg3 {[%emt 0:02:09]} Bd1 {[%emt 0:05:
13]} 28. Qb7 {[%emt 0:00:32]} Re1+ {[%emt 0:13:54]} 29. Kh2 {[%emt 0:00:01]}
Rae8 {[%emt 0:00:06]} 30. Qxc6 {[%emt 0:00:36]} a5 {[%emt 0:02:23]} 31. Nd3 {
[%emt 0:01:10]} R1e4 {[%emt 0:01:32]} 32. Nf4 {[%emt 0:01:38]} Rd8 {[%emt 0:01:
41]} 33. Qc7 {[%emt 0:00:34]} Qd7 {[%emt 0:01:40]} 34. Qxa5 {[%emt 0:01:13]}
Rxd4 {[%emt 0:00:47]} 35. Ne6 {[%emt 0:00:31]} Qxe6 {[%emt 0:00:40]} 36. Qxd8+
{[%emt 0:00:01]} Kh7 {[%emt 0:00:07]} 37. Rc8 {[%emt 0:00:34]} Kg6 {[%emt 0:03:
13]} 38. Rc7 {[%emt 0:00:28]} Kh7 {[%emt 0:00:36]} 39. Rc8 {[%emt 0:00:09]} Kg6
{[%emt 0:00:14]} 40. Rc7 {[%emt 0:00:16]} Kh7 {[%emt 0:00:05]} 41. Re7 {
[%emt 0:09:28]} Qa6 {[%emt 0:03:28]} 42. Qd7 {[%emt 0:01:59]} Bxc2 {[%emt 0:03:
53]} 43. Rxg7+ {[%emt 0:00:15]} Kh8 {[%emt 0:00:04]} 44. Re7 {[%emt 0:02:06]}
1-0

[Event "23rd ETCC Women 2021"]
[Site "Catez"]
[Date "2021.11.14"]
[Round "3.20"]
[White "Mihok-Juhasz, Barbara"]
[Black "Navrotescu, Andreea"]
[Result "1-0"]
[ECO "C07"]
[WhiteElo "2258"]
[BlackElo "2210"]
[Annotator "NA"]
[PlyCount "75"]
[EventDate "2021.11.08"]
[EventType "team-tourn"]
[EventCountry "SLO"]
[SourceTitle "playchess.com"]
[Source "ChessBase"]
[SourceQuality "1"]
[WhiteTeam "Hungary"]
[BlackTeam "France"]
[WhiteTeamCountry "HUN"]
[BlackTeamCountry "FRA"]
[TimeControl "40/5400+30:1800+30"]

1. e4 {[%emt 0:00:05]} e6 {[%emt 0:00:05]} 2. d4 {[%emt 0:00:06]} d5 {[%emt 0:
00:04]} 3. Nd2 {[%emt 0:00:04]} c5 {[%emt 0:00:07]} 4. exd5 {[%emt 0:00:06]}
Qxd5 {[%emt 0:00:06]} 5. Ngf3 {[%emt 0:00:05]} cxd4 {[%emt 0:00:11]} 6. Bc4 {
[%emt 0:00:07]} Qd7 {[%emt 0:00:06]} 7. O-O {[%emt 0:01:13]} Nc6 {[%emt 0:00:
32]} 8. Nb3 {[%emt 0:02:09]} a6 {[%emt 0:00:30]} 9. a4 {[%emt 0:06:08]} Bd6 {
[%emt 0:16:49]} 10. Nbxd4 {[%emt 0:08:01]} Nge7 {[%emt 0:01:14]} 11. Nxc6 {
[%emt 0:06:24]} bxc6 {[%emt 0:08:00]} 12. b3 {[%emt 0:13:38]} O-O {[%emt 0:04:
59]} 13. Bb2 {[%emt 0:00:06]} Qc7 {[%emt 0:00:38]} 14. Qe2 {[%emt 0:01:39]} Ng6
{[%emt 0:02:13]} 15. Rad1 {[%emt 0:11:28]} c5 {[%emt 0:06:56]} 16. Qd2 {
[%emt 0:26:22]} Be7 {[%emt 0:05:03]} 17. Qe3 {[%emt 0:02:54]} Bb7 {[%emt 0:12:
46]} 18. Ne5 {[%emt 0:01:34]} Bd6 {[%emt 0:02:45]} 19. Nxg6 {[%emt 0:00:29]}
hxg6 {[%emt 0:20:25]} 20. Qc3 {[%emt 0:00:20]} e5 {[%emt 0:08:26]} 21. Qd3 {
[%emt 0:01:00]} Qc6 {[%emt 0:05:33]} 22. Qxg6 {[%emt 0:00:41]} Bc7 {[%emt 0:02:
03]} 23. Qg3 {[%emt 0:01:19]} Rad8 {[%emt 0:00:14]} 24. f3 {[%emt 0:06:17]} Rd4
{[%emt 0:00:35]} 25. Bxd4 {[%emt 0:00:30]} exd4 {[%emt 0:00:37]} 26. Qh4 {
[%emt 0:00:39]} Bd8 {[%emt 0:01:21]} 27. Qf4 {[%emt 0:00:16]} Bc7 {[%emt 0:00:
15]} 28. Qh4 {[%emt 0:01:34]} Bd8 {[%emt 0:00:02]} 29. Qg4 {[%emt 0:00:07]} Bc7
{[%emt 0:00:50]} 30. Rde1 {[%emt 0:01:27]} Qh6 {[%emt 0:00:13]} 31. f4 {
[%emt 0:01:17]} Qf6 {[%emt 0:00:51]} 32. Qd7 {[%emt 0:01:21]} Qg6 {[%emt 0:01:
02]} 33. Rf2 {[%emt 0:00:40]} Bxf4 {[%emt 0:00:50]} 34. Qxb7 {[%emt 0:01:22]}
Qh6 {[%emt 0:00:24]} 35. g3 {[%emt 0:00:52]} Be3 {[%emt 0:00:03]} 36. Rxe3 {
[%emt 0:00:03]} Qxe3 {[%emt 0:00:18]} 37. Bxf7+ {[%emt 0:00:27]} Kh8 {[%emt 0:
00:12]} 38. Qf3 {[%emt 0:00:51]} 1-0

[Event "23rd ETCC Women 2021"]
[Site "Catez"]
[Date "2021.11.14"]
[Round "3.21"]
[White "Georgescu, Lena"]
[Black "Vega Gutierrez, Sabrina"]
[Result "0-1"]
[ECO "B45"]
[WhiteElo "2262"]
[BlackElo "2394"]
[Annotator "ChessBase"]
[PlyCount "120"]
[EventDate "2021.11.08"]
[EventType "team-tourn"]
[EventCountry "SLO"]
[SourceTitle "playchess.com"]
[Source "ChessBase"]
[SourceQuality "1"]
[WhiteTeam "Switzerland"]
[BlackTeam "Spain"]
[WhiteTeamCountry "SUI"]
[BlackTeamCountry "ESP"]
[TimeControl "40/5400+30:1800+30"]

1. e4 {[%emt 0:00:04]} c5 {[%emt 0:00:11]} 2. Nf3 {[%emt 0:00:05]} e6 {[%emt 0:
00:07]} 3. d4 {[%emt 0:00:04]} cxd4 {[%emt 0:00:05]} 4. Nxd4 {[%emt 0:00:06]}
Nf6 {[%emt 0:00:10]} 5. Nc3 {[%emt 0:00:05]} Nc6 {[%emt 0:00:10]} 6. Nxc6 {
[%emt 0:00:07]} bxc6 {[%emt 0:00:06]} 7. e5 {[%emt 0:00:03]} Nd5 {[%emt 0:00:
10]} 8. Ne4 {[%emt 0:00:03]} Qc7 {[%emt 0:00:18]} 9. f4 {[%emt 0:00:05]} Qb6 {
[%emt 0:00:10]} 10. c4 {[%emt 0:00:20]} Bb4+ {[%emt 0:00:17]} 11. Ke2 {[%emt 0:
00:11]} f5 {[%emt 0:00:56]} 12. Nf2 {[%emt 0:01:06]} Ba6 {[%emt 0:00:35]} 13.
Kf3 {[%emt 0:00:52]} Ne7 {[%emt 0:00:08]} 14. Be3 {[%emt 0:00:38]} Bc5 {
[%emt 0:00:25]} 15. Bxc5 {[%emt 0:00:14]} Qxc5 {[%emt 0:00:06]} 16. Qd6 {
[%emt 0:00:38]} Qa5 {[%emt 0:00:46]} 17. h4 {[%emt 0:01:24]} Rd8 {[%emt 0:00:
39]} 18. Be2 {[%emt 0:01:06]} Nc8 {[%emt 0:02:14]} 19. Qd4 {[%emt 0:03:36]} O-O
{[%emt 0:01:11]} 20. Rhd1 {[%emt 0:20:18]} c5 {[%emt 0:12:16]} 21. Qe3 {
[%emt 0:00:38]} Qc7 {[%emt 0:01:39]} 22. Rd2 {[%emt 0:05:41]} d6 {[%emt 0:06:
06]} 23. Rad1 {[%emt 0:17:11]} dxe5 {[%emt 0:14:18]} 24. Qxe5 {[%emt 0:00:10]}
Qxe5 {[%emt 0:04:36]} 25. fxe5 {[%emt 0:00:07]} Rxd2 {[%emt 0:00:12]} 26. Rxd2
{[%emt 0:00:07]} Ne7 {[%emt 0:03:34]} 27. Rd6 {[%emt 0:16:48]} Bb7+ {[%emt 0:
03:08]} 28. Kg3 {[%emt 0:01:27]} f4+ {[%emt 0:01:00]} 29. Kh3 {[%emt 0:06:20]}
f3 {[%emt 0:07:04]} 30. Bxf3 {[%emt 0:01:09]} Bxf3 {[%emt 0:00:16]} 31. gxf3 {
[%emt 0:00:05]} Rxf3+ {[%emt 0:12:58]} 32. Kg2 {[%emt 0:00:07]} Re3 {[%emt 0:
01:23]} 33. Nd3 {[%emt 0:06:09]} Nf5 {[%emt 0:03:24]} 34. Rd8+ {[%emt 0:01:41]}
Kf7 {[%emt 0:00:08]} 35. Nxc5 {[%emt 0:11:46]} Rxe5 {[%emt 0:02:08]} 36. b4 {
[%emt 0:02:28]} a5 {[%emt 0:01:52]} 37. a3 {[%emt 0:01:15]} Ne3+ {[%emt 0:01:
15]} 38. Kf3 {[%emt 0:00:58]} Nxc4 {[%emt 0:00:11]} 39. Rd7+ {[%emt 0:00:53]}
Kg6 {[%emt 0:01:58]} 40. Ne4 {[%emt 0:03:06]} Nxa3 {[%emt 0:09:58]} 41. bxa5 {
[%emt 0:30:37]} Rxa5 {[%emt 0:30:20]} 42. Re7 {[%emt 0:00:00]} Nc4 {[%emt 0:00:
00]} 43. Kg4 {[%emt 0:00:00]} h5+ {[%emt 0:00:00]} 44. Kg3 {[%emt 0:00:00]}
Ra3+ {[%emt 0:00:00]} 45. Kh2 {[%emt 0:00:00]} Ne5 {[%emt 0:00:00]} 46. Ng5 {
[%emt 0:00:00]} Ng4+ {[%emt 0:00:00]} 47. Kg2 {[%emt 0:00:25]} e5 {[%emt 0:01:
54]} 48. Ne4 {[%emt 0:01:23]} Ra2+ {[%emt 0:04:45]} 49. Kg3 {[%emt 0:00:48]}
Re2 {[%emt 0:00:54]} 50. Ng5 {[%emt 0:00:44]} Re3+ {[%emt 0:03:05]} 51. Kg2 {
[%emt 0:00:20]} Ra3 {[%emt 0:00:11]} 52. Ne4 {[%emt 0:00:44]} Kf5 {[%emt 0:02:
14]} 53. Ng3+ {[%emt 0:00:54]} Kf6 {[%emt 0:00:12]} 54. Rb7 {[%emt 0:00:55]}
Ra2+ {[%emt 0:00:31]} 55. Kf3 {[%emt 0:00:57]} Rf2+ {[%emt 0:00:12]} 56. Ke4 {
[%emt 0:00:05]} Rf4+ {[%emt 0:00:10]} 57. Kd5 {[%emt 0:00:20]} Ne3+ {[%emt 0:
01:12]} 58. Kd6 {[%emt 0:01:12]} Rxh4 {[%emt 0:01:11]} 59. Rb8 {[%emt 0:00:22]}
Rd4+ {[%emt 0:01:01]} 60. Kc5 {[%emt 0:00:11]} h4 {[%emt 0:00:24]} 0-1

[Event "23rd ETCC Women 2021"]
[Site "Catez"]
[Date "2021.11.14"]
[Round "3.22"]
[White "Garcia Martin, Marta"]
[Black "Hakimifard, Ghazal"]
[Result "1-0"]
[ECO "B42"]
[WhiteElo "2324"]
[BlackElo "2267"]
[Annotator "NA"]
[PlyCount "73"]
[EventDate "2021.11.08"]
[EventType "team-tourn"]
[EventCountry "SLO"]
[SourceTitle "playchess.com"]
[Source "ChessBase"]
[SourceQuality "1"]
[WhiteTeam "Spain"]
[BlackTeam "Switzerland"]
[WhiteTeamCountry "ESP"]
[BlackTeamCountry "SUI"]
[TimeControl "40/5400+30:1800+30"]

1. e4 {[%emt 0:00:04]} c5 {[%emt 0:00:06]} 2. Nf3 {[%emt 0:00:05]} e6 {[%emt 0:
00:05]} 3. d4 {[%emt 0:00:12]} cxd4 {[%emt 0:00:04]} 4. Nxd4 {[%emt 0:00:05]}
a6 {[%emt 0:00:03]} 5. Bd3 {[%emt 0:00:27]} Bc5 {[%emt 0:00:36]} 6. Nb3 {
[%emt 0:00:16]} Ba7 {[%emt 0:00:04]} 7. O-O {[%emt 0:00:35]} Nc6 {[%emt 0:02:
01]} 8. Qe2 {[%emt 0:00:46]} d6 {[%emt 0:00:17]} 9. Be3 {[%emt 0:00:07]} Nf6 {
[%emt 0:00:45]} 10. Nc3 {[%emt 0:02:19]} O-O {[%emt 0:00:33]} 11. Rad1 {
[%emt 0:05:22]} Qc7 {[%emt 0:06:51]} 12. Bxa7 {[%emt 0:06:53]} Rxa7 {[%emt 0:
00:04]} 13. f4 {[%emt 0:01:25]} b5 {[%emt 0:01:23]} 14. a3 {[%emt 0:01:27]} Bb7
{[%emt 0:08:48]} 15. Kh1 {[%emt 0:21:47]} Raa8 {[%emt 0:02:53]} 16. Rf3 {
[%emt 0:02:36]} b4 {[%emt 0:02:52]} 17. axb4 {[%emt 0:02:59]} Nxb4 {[%emt 0:00:
02]} 18. Rh3 {[%emt 0:06:44]} Nxd3 {[%emt 0:13:53]} 19. Rhxd3 {[%emt 0:00:56]}
Rad8 {[%emt 0:02:49]} 20. Qe3 {[%emt 0:12:04]} Nh5 {[%emt 0:13:10]} 21. Qd2 {
[%emt 0:23:06]} d5 {[%emt 0:09:09]} 22. exd5 {[%emt 0:04:04]} Nxf4 {[%emt 0:04:
48]} 23. d6 {[%emt 0:00:14]} Qc6 {[%emt 0:00:06]} 24. Rg3 {[%emt 0:02:10]} e5 {
[%emt 0:05:03]} 25. Na5 {[%emt 0:00:54]} Qd7 {[%emt 0:00:05]} 26. Nxb7 {
[%emt 0:00:11]} Qxb7 {[%emt 0:00:01]} 27. Nd5 {[%emt 0:03:40]} Ne6 {[%emt 0:05:
45]} 28. Nf6+ {[%emt 0:01:21]} Kh8 {[%emt 0:00:01]} 29. Rh3 {[%emt 0:00:23]}
gxf6 {[%emt 0:04:16]} 30. Qh6 {[%emt 0:00:35]} Qe4 {[%emt 0:00:11]} 31. Qxf6+ {
[%emt 0:00:05]} Ng7 {[%emt 0:00:20]} 32. Rg3 {[%emt 0:00:12]} Rg8 {[%emt 0:00:
32]} 33. Rxg7 {[%emt 0:00:16]} Rxg7 {[%emt 0:00:05]} 34. Qxd8+ {[%emt 0:00:05]}
Rg8 {[%emt 0:00:02]} 35. Qf6+ {[%emt 0:00:10]} Rg7 {[%emt 0:00:00]} 36. Qxg7+ {
[%emt 0:01:45]} Kxg7 {[%emt 0:00:03]} 37. d7 {[%emt 0:00:04]} 1-0